bitfinex-derivatives/quotes_SOLF0:USTF0_20260126
["timestamp","ask_amount","ask_price","bid_price","bid_amount"]
[1769446639770,35.1466828,124.33,124.25,112.7803]
[1769446639975,35.1466828,124.33,124.26,112.7737]
[1769446640674,35.1466828,124.33,124.28,7.2484]
[1769446640872,35.1466828,124.33,124.25,112.7803]
[1769446641177,35.1466828,124.33,124.27,112.7626]
[1769446641479,35.1466828,124.33,124.29,7.2478]
[1769446642077,35.1466828,124.36,124.3,7.2472]
[1769446642379,35.1466828,124.36,124.29,112.7463]
[1769446643078,35.1466828,124.36,124.31,7.2465]
[1769446643580,35.1466828,124.36,124.28,112.7516]
[1769446644080,35.1466828,124.36,124.29,7.2475]
[1769446644780,35.1466828,124.36,124.27,386.0887]
[1769446645176,35.1466828,124.36,124.27,378.84]
[1769446645984,42.3906828,124.36,124.28,7.2483]
[1769446646475,42.3906828,124.36,124.27,316.84]
[1769446646679,35.1466828,124.34,124.27,316.84]
[1769446647673,37.52080482,124.34,124.27,319.21412202]
[1769446647886,37.52080482,124.34,124.27,326.46322202]
[1769446648182,37.52080482,124.33,124.26,2.37412202]
[1769446648386,37.52080482,124.33,124.25,2.37412202]
[1769446649282,37.52080482,124.33,124.27,7.2491]
[1769446651187,37.52080482,124.33,124.24,410.22995476]
[1769446651380,37.52080482,124.3,124.24,28.56995476]
[1769446651679,35.1466828,124.3,124.24,28.56995476]
[1769446652285,35.1466828,124.3,124.24,30.94407678]
[1769446652481,35.1466828,124.3,124.25,7.2502]
[1769446652683,35.1466828,124.33,124.26,2.37412202]
[1769446652886,37.52080482,124.33,124.26,2.37412202]
[1769446653082,37.52080482,124.33,124.27,7.2491]
[1769446653290,35.1466828,124.33,124.27,9.62322202]
[1769446654686,35.1466828,124.35,124.29,2.37412202]
[1769446654889,35.1466828,124.35,124.28,9.62232202]
[1769446655685,37.52080482,124.35,124.28,9.62232202]
[1769446655890,35.1466828,124.32,124.26,7.2492]
[1769446656188,35.1466828,124.32,124.26,2.37412202]
[1769446656895,35.1466828,124.32,124.25,327.1897]
[1769446657089,37.52080482,124.32,124.25,329.56382202]
[1769446657283,35.1466828,124.32,124.26,2.37412202]
[1769446657590,35.1466828,124.32,124.25,319.94]
[1769446658987,35.1466828,124.32,124.26,7.2494]
[1769446659986,35.1466828,124.32,124.24,35.82025476]
[1769446660706,35.1466828,124.3,124.24,35.82025476]
[1769446663079,35.1466828,124.3,124.24,28.56995476]
[1769446665097,35.1466828,124.3,124.24,35.82075476]
[1769446666297,35.1466828,124.3,124.24,28.56995476]
[1769446667585,35.1466828,124.33,124.24,28.56995476]
[1769446667786,35.1466828,124.33,124.26,7.2497]
[1769446673994,35.1466828,124.33,124.27,7.2487]
[1769446676191,35.1466828,124.33,124.28,7.2485]
[1769446677101,35.1466828,124.33,124.25,112.7803]
[1769446677698,35.1466828,124.33,124.24,141.35535476]
[1769446677903,35.1466828,124.33,124.24,28.56995476]
[1769446679695,35.1466828,124.31,124.24,30.94493985]
[1769446679896,35.1466828,124.31,124.27,7.2491]
[1769446680198,35.1466828,124.31,124.24,30.94493985]
[1769446680702,35.1466828,124.31,124.26,7.2496]
[1769446681104,35.1466828,124.29,124.24,28.56995476]
[1769446682106,37.52166789,124.29,124.24,28.56995476]
[1769446682503,37.52166789,124.29,124.23,317.37752918]
[1769446682504,27.17461318,124.27,124.23,317.37752918]
[1769446682705,27.17461318,124.27,124.21,7.2522]
[1769446683200,27.17461318,124.27,124.22,7.252]
[1769446684102,27.17461318,124.27,124.23,7.2514]
[1769446684301,27.17461318,124.29,124.23,7.2514]
[1769446686004,27.17461318,124.29,124.23,26.20261869]
[1769446686201,27.17461318,124.29,124.24,7.2509]
[1769446687301,433.8948,124.35,124.25,2.37498509]
[1769446687302,27.17461318,124.31,124.25,2.37498509]
[1769446687802,27.17461318,124.31,124.26,7.2496]
[1769446688009,27.17461318,124.31,124.25,2.37498509]
[1769446689900,27.17461318,124.31,124.25,9.62518509]
[1769446690710,27.17461318,124.31,124.26,7.2497]
[1769446691012,27.17461318,124.35,124.29,2.37498509]
[1769446691204,27.17461318,124.35,124.27,21.69833406]
[1769446691397,27.17461318,124.35,124.29,7.2477]
[1769446691601,29.54959827,124.35,124.27,19.32334897]
[1769446691800,29.54959827,124.33,124.26,2.37498509]
[1769446692201,27.17461318,124.33,124.26,21.84081945]
[1769446692904,29.54959827,124.35,124.28,2.37498509]
[1769446693109,29.54959827,124.35,124.28,21.84081945]
[1769446693909,29.54959827,124.35,124.3,7.2473]
[1769446695310,27.17461318,124.35,124.3,7.2473]
[1769446696308,27.17461318,124.35,124.31,7.2467]
[1769446697106,27.17461318,124.37,124.32,7.2462]
[1769446698113,29.54959827,124.39,124.32,22.1835082]
[1769446698304,29.54959827,124.39,124.33,22.24952609]
[1769446698305,27.17461318,124.39,124.33,22.24952609]
[1769446698507,27.17461318,124.39,124.35,7.2444]
[1769446699407,29.54959827,124.39,124.33,27.119541]
[1769446699713,30.61854411,124.38,124.31,343.56962925]
[1769446700011,30.61854411,124.38,124.31,348.44094416]
[1769446700714,30.61854411,124.38,124.32,7.2462]
[1769446702613,28.24355902,124.36,124.31,321.16]
[1769446704018,28.24355902,124.36,124.31,328.4068]
[1769446704912,30.61854411,124.36,124.31,321.16]
[1769446705112,30.61854411,124.36,124.3,7.2474]
[1769446705517,28.24355902,124.36,124.3,7.2474]
[1769446707216,28.24355902,124.36,124.29,2.37498509]
[1769446709212,30.61854411,124.36,124.29,2.37498509]
[1769446710418,28.24355902,124.36,124.29,23.06912781]
[1769446710613,28.24355902,124.36,124.27,321.08]
[1769446710614,28.24355902,124.36,124.31,2.37498509]
[1769446710819,28.24355902,124.38,124.31,23.06912781]
[1769446711019,28.24355902,124.38,124.32,2.37498509]
[1769446711816,28.24355902,124.38,124.32,23.12491822]
[1769446712319,28.24355902,124.38,124.34,7.245]
[1769446714321,28.24355902,124.38,124.33,9.62058509]
[1769446714520,28.24355902,124.38,124.33,7.2456]
[1769446714723,30.61854411,124.38,124.33,7.2456]
[1769446715024,30.61854411,124.38,124.31,2.37498509]
[1769446715025,30.61854411,124.38,124.32,7.2462]
[1769446715823,28.24355902,124.38,124.33,7.2456]
[1769446716019,28.24355902,124.38,124.33,2.37498509]
[1769446716927,28.24355902,124.38,124.34,7.2448]
[1769446717421,664.77800763,124.49,124.36,2.37498509]
[1769446717422,28.24355902,124.42,124.36,2.37498509]
[1769446719021,28.24355902,124.42,124.36,9.61878509]
[1769446720420,28.24355902,124.42,124.37,7.2431]
[1769446721327,28.24355902,124.4,124.34,2.37498509]
[1769446721828,28.24355902,124.4,124.34,7.2448]
[1769446721829,30.61854411,124.4,124.34,7.2448]
[1769446722125,28.24355902,124.4,124.34,9.61978509]
[1769446723636,28.24355902,124.4,124.34,2.37498509]
[1769446726826,35.48515902,124.4,124.34,2.37498509]
[1769446727823,112.606,124.45,124.34,23.93320482]
[1769446727824,28.24355902,124.45,124.34,23.93320482]
[1769446728028,28.24355902,124.43,124.36,2.37498509]
[1769446729521,29.24033359,124.42,124.37,2.37498509]
[1769446730318,29.24033359,124.42,124.36,9.61888509]
[1769446733334,36.48083359,124.42,124.36,9.61888509]
[1769446733929,36.48083359,124.42,124.36,7.2439]
[1769446734234,36.48083359,124.42,124.29,2.37498509]
[1769446734235,31.61531868,124.38,124.29,2.37498509]
[1769446734530,29.24033359,124.35,124.29,2.37498509]
[1769446735437,2.37498509,124.36,124.26,2.37498509]
[1769446735438,29.24033359,124.33,124.26,2.37498509]
[1769446735627,29.24033359,124.33,124.26,2.3745382]
[1769446736727,36.48613359,124.33,124.26,31.6776312]
[1769446739334,7.2464,124.32,124.26,31.6776312]
[1769446739535,36.48673359,124.32,124.26,31.6776312]
[1769446740340,29.24033359,124.32,124.26,31.6776312]
[1769446741436,29.24033359,124.32,124.23,62.0]
[1769446741437,31.61487179,124.32,124.24,2.3745382]
[1769446741638,29.24033359,124.31,124.24,9.6253382]
[1769446741939,29.24033359,124.31,124.24,39.20556602]
[1769446742431,29.24033359,124.31,124.26,2.3745382]
[1769446743943,29.24033359,124.31,124.26,9.6242382]
[1769446744242,29.24033359,124.31,124.27,2.3745382]
[1769446745138,29.24033359,124.33,124.27,9.6235382]
[1769446748140,29.24033359,124.33,124.28,32.31697446]
[1769446749646,29.24033359,124.33,124.28,39.56547446]
[1769446751044,29.24033359,124.33,124.28,37.19093626]
[1769446751843,29.24033359,124.33,124.26,32.46331189]
[1769446752142,29.24033359,124.33,124.26,30.08877369]
[1769446752143,31.61487179,124.33,124.26,30.08877369]
[1769446752443,29.24033359,124.32,124.25,2.3745382]
[1769446752648,31.61487179,124.31,124.24,32.5110574]
[1769446752945,29.24033359,124.31,124.24,32.5110574]
[1769446753546,29.24033359,124.31,124.24,30.1365192]
[1769446753843,29.24033359,124.29,124.24,7.2503]
[1769446754147,31.61487179,124.29,124.22,32.55829052]
[1769446755045,31.61487179,124.29,124.23,7.2515]
[1769446755440,29.24033359,124.29,124.23,7.2515]
[1769446756144,29.24033359,124.29,124.23,9.6260382]
[1769446756947,29.24033359,124.29,124.24,7.2508]
[1769446757248,29.24033359,124.29,124.24,9.6253382]
[1769446758050,31.61487179,124.31,124.24,39.99298792]
[1769446758246,29.24033359,124.31,124.24,32.74218792]
[1769446758445,29.24033359,124.31,124.25,2.3745382]
[1769446759345,29.24033359,124.31,124.26,2.3745382]
[1769446759541,29.24033359,124.31,124.26,9.6242382]
[1769446760547,29.24033359,124.31,124.26,7.2497]
[1769446763556,29.34578482,124.33,124.26,30.31845894]
[1769446764653,7.2463,124.32,124.25,2.3745382]
[1769446764856,29.34578482,124.29,124.22,32.69299714]
[1769446765060,31.72032302,124.29,124.22,32.69299714]
[1769446765655,31.72032302,124.29,124.24,7.2503]
[1769446767057,31.72032302,124.29,124.22,30.31845894]
[1769446767258,31.72032302,124.29,124.22,32.69299714]
[1769446767958,29.34578482,124.28,124.22,39.94499714]
[1769446768762,29.34578482,124.28,124.23,7.2514]
[1769446769161,29.34578482,124.28,124.23,9.6259382]
[1769446769968,29.34578482,124.28,124.24,7.2507]
[1769446771277,29.34578482,124.3,124.25,7.2503]
[1769446772472,29.34578482,124.3,124.19,169.01513833]
[1769446772673,29.34578482,124.26,124.21,7.2525]
[1769446773083,29.34578482,124.26,124.21,9.6270382]
[1769446773872,29.34578482,124.26,124.22,7.252]
[1769446774979,29.34578482,124.26,124.2,32.69299714]
[1769446775982,29.34578482,124.26,124.21,7.2525]
[1769446777075,29.34578482,124.26,124.22,7.2519]
[1769446778083,29.34578482,124.28,124.22,9.6264382]
[1769446778581,29.34578482,124.28,124.23,7.2514]
[1769446779186,29.34578482,124.28,124.23,9.6259382]
[1769446779480,29.34578482,124.28,124.22,2.3745382]
[1769446780391,31.72032302,124.28,124.21,30.31845894]
[1769446780585,31.72032302,124.28,124.2,2.3745382]
[1769446781985,29.34578482,124.27,124.2,9.6276382]
[1769446782788,29.34578482,124.27,124.2,7.2531]
[1769446784180,29.34578482,124.27,124.21,9.6269382]
[1769446784482,29.34578482,124.25,124.19,2.3745382]
[1769446784883,7.2493,124.27,124.21,9.6269382]
[1769446784884,29.34578482,124.27,124.21,9.6269382]
[1769446790793,29.34578482,124.27,124.22,7.2518]
[1769446797800,29.34578482,124.27,124.23,9.62694269]
[1769446798900,30.63656962,124.29,124.24,7.2508]
[1769446799403,30.63656962,124.29,124.25,2.37574269]
[1769446800109,30.63656962,124.29,124.23,30.83352721]
[1769446800310,30.63656962,124.31,124.26,2.37444719]
[1769446800804,30.63656962,124.31,124.25,2.37444719]
[1769446801014,30.63656962,124.31,124.24,2.37444719]
[1769446801309,112.6972,124.35,124.22,143.64142721]
[1769446801310,30.63656962,124.29,124.23,7.2514]
[1769446801501,30.63656962,124.32,124.25,33.2079744]
[1769446801811,33.01101681,124.32,124.25,2.37444719]
[1769446803014,30.63656962,124.3,124.25,2.37444719]
[1769446803516,33.01101681,124.3,124.2,193.16481636]
[1769446803707,22.41027712,124.27,124.18,2.37444719]
[1769446803916,20.03582993,124.24,124.18,2.37444719]
[1769446804615,20.03582993,124.24,124.16,2.37444719]
[1769446804812,9.62494719,124.25,124.15,33.2079744]
[1769446804813,22.61798629,124.23,124.15,33.2079744]
[1769446805013,20.2435391,124.23,124.16,33.2079744]
[1769446805318,20.44841696,124.28,124.21,2.37444719]
[1769446806117,20.44841696,124.28,124.22,2.37444719]
[1769446806420,20.44841696,124.28,124.21,2.37444719]
[1769446806626,20.65129189,124.26,124.19,33.2079744]
[1769446806824,20.65129189,124.26,124.19,2.37444719]
[1769446807217,20.65129189,124.26,124.17,30.83352721]
[1769446807515,20.65129189,124.26,124.19,2.37444719]
[1769446807716,20.65129189,124.26,124.2,2.37444719]
[1769446808120,20.65129189,124.26,124.21,2.37444719]
[1769446808708,21.05048531,124.28,124.22,2.37444719]
[1769446809319,21.05048531,124.28,124.23,2.37444719]
[1769446809522,21.05048531,124.28,124.22,2.37444719]
[1769446811117,21.05048531,124.28,124.23,2.37444719]
[1769446811510,21.63208207,124.3,124.24,2.37444719]
[1769446811710,21.63208207,124.3,124.25,2.37444719]
[1769446812415,21.82091681,124.33,124.26,2.37444719]
[1769446813021,24.195364,124.33,124.26,2.37444719]
[1769446814025,31.441164,124.33,124.26,2.37444719]
[1769446814223,22.00844443,124.32,124.26,2.37444719]
[1769446815114,29.43862858,124.35,124.28,2.37444719]
[1769446815321,22.37643729,124.34,124.29,2.37444719]
[1769446816128,22.37643729,124.34,124.28,2.37444719]
[1769446817330,22.73540938,124.36,124.29,33.2079744]
[1769446817530,22.73540938,124.36,124.3,2.37444719]
[1769446818227,22.73540938,124.36,124.27,38.08212721]
[1769446818228,22.91179199,124.35,124.27,38.08212721]
[1769446818422,25.28623918,124.35,124.27,38.08212721]
[1769446818628,25.28623918,124.35,124.27,40.4565744]
[1769446818829,23.01195456,124.33,124.26,2.37444719]
[1769446820035,30.25775456,124.33,124.26,9.62404719]
[1769446820233,30.25775456,124.33,124.27,2.37444719]
[1769446823337,23.01195456,124.33,124.27,2.37444719]
[1769446824527,24.23035898,124.32,124.26,2.37444719]
[1769446824734,26.60480617,124.32,124.24,2.37444719]
[1769446824930,24.23035898,124.32,124.25,2.37444719]
[1769446825125,31.47655898,124.32,124.26,2.37444719]
[1769446825334,24.38945199,124.31,124.26,2.37444719]
[1769446826736,24.38945199,124.31,124.25,2.37444719]
[1769446829742,25.00989285,124.34,124.26,34.09945669]
[1769446829935,25.00989285,124.34,124.28,2.37444719]
[1769446830335,7.2457,124.33,124.27,2.37444719]
[1769446830543,25.16025744,124.32,124.26,2.37444719]
[1769446831935,25.16025744,124.32,124.26,9.62404719]
[1769446832141,25.16025744,124.32,124.26,2.37444719]
[1769446833941,25.16025744,124.32,124.27,7.2491]
[1769446834438,25.16025744,124.32,124.26,2.37444719]
[1769446835136,2.37444719,124.35,124.28,2.37444719]
[1769446835339,112.6681,124.38,124.29,7.2479]
[1769446835340,25.88818131,124.34,124.29,7.2479]
[1769446835543,25.88818131,124.34,124.29,9.62234719]
[1769446836038,25.88818131,124.33,124.26,2.37444719]
[1769446836236,28.2626285,124.33,124.26,2.37444719]
[1769446836638,26.02886008,124.32,124.26,2.37444719]
[1769446837443,26.02886008,124.32,124.27,2.37444719]
[1769446838742,26.02886008,124.32,124.27,9.62304719]
[1769446839041,26.02886008,124.32,124.26,2.37444719]
[1769446839943,26.02886008,124.32,124.26,9.62404719]
[1769446842940,26.02886008,124.32,124.26,7.2496]
[1769446843742,26.9694584,124.31,124.25,41.34975669]
[1769446845749,26.9694584,124.31,124.26,7.2497]
[1769446849948,26.9694584,124.31,124.27,7.2491]
[1769446852944,26.9694584,124.31,124.28,7.2484]
[1769446856553,9.61964719,124.34,124.27,2.37444719]
[1769446856554,28.598678,124.33,124.29,7.248]
[1769446856946,28.598678,124.33,124.29,9.62244719]
[1769446857343,2.37444719,124.37,124.3,9.62164719]
[1769446857547,2.37304514,124.37,124.3,9.62024514]
[1769446857750,323.53304514,124.39,124.31,9.61924514]
[1769446857948,2.37304514,124.38,124.31,9.61924514]
[1769446858148,2.37304514,124.38,124.31,7.2462]
[1769446858347,9.61584514,124.38,124.32,7.2461]
[1769446859444,112.6469,124.41,124.33,7.2456]
[1769446859445,15.38384473,124.37,124.33,7.2456]
[1769446859649,15.38384473,124.37,124.31,2.37304514]
[1769446860550,15.51979861,124.34,124.27,37.19284943]
[1769446861858,15.51979861,124.34,124.28,2.37304514]
[1769446862159,15.51979861,124.34,124.29,2.37304514]
[1769446862556,15.51979861,124.34,124.28,2.37304514]
[1769446862759,15.51979861,124.34,124.27,34.81980429]
[1769446862760,15.51979861,124.34,124.27,37.19284943]
[1769446864062,15.91819243,124.33,124.27,37.19284943]
[1769446864458,15.91819243,124.33,124.27,44.44194943]
[1769446864963,15.91819243,124.33,124.28,2.37304514]
[1769446866169,23.16399243,124.33,124.28,2.37304514]
[1769446866878,23.16399243,124.33,124.27,37.19284943]
[1769446867478,15.91819243,124.33,124.27,44.44174943]
[1769446867974,15.91819243,124.33,124.28,2.37304514]
[1769446868171,23.79637991,124.35,124.29,37.19284943]
[1769446868374,16.55187991,124.34,124.29,37.19284943]
[1769446869869,16.67452973,124.33,124.27,44.44194943]
[1769446870872,16.79579184,124.38,124.28,34.81980429]
[1769446871179,24.03959184,124.37,124.31,37.19284943]
[1769446871379,16.79579184,124.37,124.31,37.19284943]
[1769446871777,16.79579184,124.37,124.31,44.43954943]
[1769446873276,16.79579184,124.37,124.32,2.37304514]
[1769446874574,17.26640446,124.39,124.33,37.19284943]
[1769446874886,17.26640446,124.42,124.36,2.37304514]
[1769446875276,19.6394496,124.42,124.36,2.37304514]
[1769446875478,17.38063182,124.4,124.34,2.37304514]
[1769446876585,24.62233182,124.4,124.34,2.37304514]
[1769446878285,7.2409,124.42,124.35,37.19284943]
[1769446878490,17.7157482,124.41,124.36,2.37304514]
[1769446878786,17.7157482,124.41,124.35,37.19284943]
[1769446879188,17.7157482,124.41,124.35,2.37304514]
[1769446880090,25.27659422,124.4,124.35,2.37304514]
[1769446881782,18.24399929,124.39,124.34,40.48768178]
[1769446882289,18.34702008,124.38,124.33,2.37304514]
[1769446882484,18.34702008,124.38,124.32,2.37304514]
[1769446882684,18.34702008,124.38,124.31,2.37304514]
[1769446882886,7.2441,124.36,124.31,2.37304514]
[1769446883291,18.34702008,124.38,124.31,2.37304514]
[1769446883491,25.59032008,124.38,124.31,2.37304514]
[1769446883794,18.34702008,124.38,124.32,2.37304514]
[1769446884892,25.79374267,124.37,124.32,2.37304514]
[1769446885993,25.89241363,124.39,124.33,2.37304514]
[1769446886696,18.74842842,124.38,124.33,2.37304514]
[1769446889594,18.74842842,124.38,124.32,47.73388178]
[1769446890597,18.74842842,124.38,124.32,45.36083664]
[1769446890799,18.74842842,124.38,124.32,7.2462]
[1769446895200,18.74842842,124.38,124.32,47.73388178]
[1769446896402,29.28795615,124.4,124.33,45.36003664]
[1769446896702,19.67331101,124.39,124.33,45.36003664]
[1769446897595,19.67331101,124.39,124.33,7.2454]
[1769446898997,19.84506668,124.38,124.33,7.2454]
[1769446899696,19.92965842,124.39,124.34,7.2447]
[1769446900396,19.92965842,124.39,124.35,7.2444]
[1769446903210,19.92965842,124.39,124.34,2.37304514]
[1769446907803,27.81274264,124.41,124.35,38.11463664]
[1769446908110,22.94478778,124.43,124.36,40.48768178]
[1769446909012,20.57174264,124.43,124.36,40.48768178]
[1769446909309,20.79895751,124.42,124.36,40.48768178]
[1769446909507,20.79895751,124.42,124.35,2.37304514]
[1769446910803,20.87209454,124.41,124.35,9.61744514]
[1769446913816,20.87209454,124.41,124.35,47.47516121]
[1769446915510,21.22566715,124.43,124.37,40.23076121]
[1769446917712,21.22566715,124.43,124.37,40.22793995]
[1769446918012,21.22566715,124.43,124.38,7.2425]
[1769446918517,21.42813353,124.45,124.4,7.241]
[1769446919020,21.42813353,124.45,124.39,40.22793995]
[1769446920010,21.42813353,124.45,124.41,7.2408]
[1769446920411,21.42813353,124.45,124.39,2.37022388]
[1769446920613,21.42813353,124.45,124.4,9.61162388]
[1769446922615,21.42813353,124.45,124.41,2.37022388]
[1769446923524,21.42813353,124.45,124.4,2.37022388]
[1769446923823,21.42813353,124.45,124.39,40.22793995]
[1769446924021,21.7505207,124.44,124.39,2.37022388]
[1769446924322,21.7505207,124.44,124.39,40.22793995]
[1769446924522,21.7505207,124.44,124.4,2.37022388]
[1769446925416,21.875408,124.47,124.4,40.22793995]
[1769446925617,21.875408,124.47,124.41,2.37022388]
[1769446926418,21.93580263,124.44,124.38,37.85771607]
[1769446926623,21.93580263,124.44,124.39,2.37022388]
[1769446927224,21.93580263,124.44,124.38,40.22793995]
[1769446928021,21.93580263,124.44,124.38,47.47053995]
[1769446929023,2.37022388,124.48,124.4,2.37022388]
[1769446929328,22.05482032,124.47,124.4,2.37022388]
[1769446929625,22.1133631,124.46,124.41,2.37022388]
[1769446930030,7.2368,124.49,124.43,2.37022388]
[1769446930324,112.5351,124.53,124.45,2.37022388]
[1769446930519,2.37022388,124.52,124.45,2.37022388]
[1769446930720,430.9161,124.55,124.46,2.37022388]
[1769446930922,2.37022388,124.54,124.46,2.37022388]
[1769446931116,430.9161,124.55,124.45,37.85771607]
[1769446931117,2.37022388,124.53,124.45,40.22793995]
[1769446931622,2.37022388,124.53,124.46,2.37022388]
[1769446931824,7.2346,124.52,124.46,2.37022388]
[1769446932023,26.6588037,124.52,124.46,2.37022388]
[1769446932218,19.4242037,124.52,124.46,2.37022388]
[1769446932919,19.4242037,124.52,124.46,9.60812388]
[1769446933219,19.4242037,124.52,124.46,2.37022388]
[1769446933529,19.4242037,124.52,124.48,2.37022388]
[1769446935130,19.4242037,124.52,124.47,2.37022388]
[1769446936628,19.73034173,124.54,124.49,2.37022388]
[1769446938627,26.96374173,124.54,124.49,2.37022388]
[1769446940327,26.96374173,124.54,124.48,37.85771607]
[1769446940328,26.96374173,124.54,124.48,40.22793995]
[1769446940830,20.03805647,124.53,124.48,2.37022388]
[1769446941128,20.03805647,124.53,124.47,2.37022388]
[1769446941319,20.09445949,124.52,124.46,40.03837042]
[1769446941524,20.09445949,124.52,124.46,42.4085943]
[1769446943932,20.09445949,124.52,124.47,2.37022388]
[1769446946327,7.2334,124.54,124.47,49.6458943]
[1769446946328,27.59687285,124.54,124.47,49.6458943]
[1769446946527,20.36347285,124.53,124.47,49.6458943]
[1769446950730,27.59747285,124.53,124.47,49.6458943]
[1769446951239,27.59747285,124.53,124.47,42.4085943]
[1769446951629,20.36347285,124.53,124.47,42.4085943]
[1769446952930,27.59747285,124.53,124.47,42.4085943]
[1769446953134,20.71608364,124.55,124.49,42.4085943]
[1769446954736,7.2335,124.54,124.49,42.4085943]
[1769446955340,20.71608364,124.55,124.49,49.6444943]
[1769446955538,20.71608364,124.55,124.5,2.37022388]
[1769446956634,2.37022388,124.57,124.49,47.27427042]
[1769446956635,28.09099624,124.54,124.49,42.4085943]
[1769446958242,28.09099624,124.54,124.5,2.37022388]
[1769446958444,28.09099624,124.54,124.49,42.4085943]
[1769446960145,20.85759624,124.54,124.49,49.6447943]
[1769446961145,21.0832675,124.56,124.49,49.6447943]
[1769446961446,21.0832675,124.56,124.5,2.37022388]
[1769446961744,28.3155675,124.56,124.51,2.37022388]
[1769446963934,21.0832675,124.56,124.52,2.37022388]
[1769446964336,21.21229858,124.58,124.53,2.37022388]
[1769446964739,21.21229858,124.58,124.53,42.4085943]
[1769446964940,21.21229858,124.6,124.55,2.37022388]
[1769446967232,28.56707859,124.59,124.52,40.03837042]
[1769446967449,21.33657859,124.58,124.52,2.37022388]
[1769446968447,28.60913165,124.57,124.52,2.37022388]
[1769446973746,28.60913165,124.57,124.51,2.37022388]
[1769446975037,21.65123206,124.55,124.48,46.73262966]
[1769446975242,21.65123206,124.55,124.48,49.10285354]
[1769446975643,21.65123206,124.55,124.49,2.37022388]
[1769446976242,21.72377822,124.58,124.52,2.37022388]
[1769446976447,21.72377822,124.58,124.51,41.86655354]
[1769446976747,24.0940021,124.58,124.51,39.49632966]
[1769446976947,28.95597822,124.57,124.51,39.49632966]
[1769446977149,21.72377822,124.56,124.51,39.49632966]
[1769446980350,21.72377822,124.56,124.51,46.73132966]
[1769446980644,21.72377822,124.56,124.52,2.36522955]
[1769446981043,21.72377822,124.56,124.51,41.86155921]
[1769446981451,21.72377822,124.56,124.49,41.86155921]
[1769446981848,24.26303685,124.55,124.49,2.36522955]
[1769446982047,24.26303685,124.55,124.47,41.86155921]
[1769446982949,29.1306073,124.55,124.49,41.86155921]
[1769446983641,7.2335,124.54,124.49,41.86155921]
[1769446983845,21.8978073,124.55,124.49,41.86155921]
[1769446984946,29.1307073,124.55,124.49,41.86155921]
[1769446986546,7.2323,124.56,124.51,41.86155921]
[1769446989257,7.2323,124.56,124.51,39.49632966]
[1769446991558,29.29507556,124.57,124.51,39.49632966]
[1769446992658,29.29507556,124.57,124.51,49.09645921]
[1769446992860,29.29507556,124.57,124.47,112.5814]
[1769446992861,7.2312,124.58,124.52,39.49632966]
[1769446993053,24.61490378,124.58,124.52,39.49632966]
[1769446994057,22.27934031,124.56,124.5,41.86155921]
[1769446994261,24.64456986,124.56,124.5,39.49632966]
[1769446994562,24.64456986,124.56,124.48,39.49632966]
[1769446994962,24.67471906,124.55,124.48,39.49632966]
[1769446995564,24.67471906,124.55,124.48,41.86155921]
[1769446996066,7.2334,124.54,124.48,49.09835921]
[1769446996665,29.60061736,124.54,124.48,49.09835921]
[1769446999673,29.60061736,124.54,124.49,42.48843329]
[1769447000168,24.8913849,124.55,124.47,42.48843329]
[1769447000375,22.52615535,124.55,124.5,2.36522955]
[1769447001076,22.52615535,124.55,124.5,42.48843329]
[1769447001266,29.75945535,124.55,124.5,42.48843329]
[1769447002077,7.2333,124.55,124.5,42.48843329]
[1769447003474,7.2323,124.56,124.5,42.48843329]
[1769447003677,24.96965874,124.56,124.5,40.12320374]
[1769447003874,24.96965874,124.56,124.48,49.72523329]
[1769447004269,7.2329,124.55,124.49,47.35930374]
[1769447004964,29.86283173,124.55,124.49,47.35930374]
[1769447006278,7.2335,124.54,124.49,40.12320374]
[1769447006571,29.9142507,124.54,124.49,40.12320374]
[1769447009375,22.75417665,124.53,124.48,7.2369]
[1769447009980,22.75417665,124.53,124.47,42.48843329]
[1769447009981,29.98827665,124.53,124.47,42.48843329]
[1769447010174,22.75417665,124.53,124.47,42.48843329]
[1769447011979,7.2346,124.52,124.47,42.48843329]
[1769447016084,7.2346,124.52,124.47,40.12320374]
[1769447017087,29.98827665,124.53,124.47,47.36060374]
[1769447017288,29.98827665,124.53,124.47,49.72583329]
[1769447019490,29.98827665,124.53,124.48,7.2368]
[1769447019686,22.98148666,124.55,124.48,42.48843329]
[1769447019891,22.98148666,124.55,124.5,42.48843329]
[1769447020992,30.21428666,124.55,124.5,49.72403329]
[1769447021290,30.21428666,124.55,124.5,42.48843329]
[1769447021693,30.21428666,124.55,124.5,40.12320374]
[1769447024098,30.29798011,124.54,124.49,7.2362]
[1769447024693,30.31912569,124.53,124.47,9.60222955]
[1769447024997,30.31912569,124.53,124.47,49.72543329]
[1769447025896,30.31912569,124.53,124.47,42.48843329]
[1769447026787,30.31912569,124.53,124.48,2.36522955]
[1769447026998,30.341131,124.55,124.49,42.48843329]
[1769447027893,7.2334,124.54,124.49,42.48843329]
[1769447028898,30.38977043,124.54,124.49,42.48843329]
[1769447033198,23.1683727,124.56,124.49,42.48843329]
[1769447033404,30.4011727,124.56,124.49,49.72463329]